[Event "Live Chess"]
[Site "Chess.com"]
[Date "2011.01.14"]
[Round "-"]
[White "hipposcottimus"]
[Black "Polinik07"]
[Result "1-0"]
[CurrentPosition "8/6p1/5k1p/PNn5/8/4R3/6PP/6K1 w - -"]
[Timezone "UTC"]
[ECO "C51"]
[ECOUrl "https://www.chess.com/openings/Giuoco-Piano-Game-Evans-Accepted-McDonnell-Defense-6.O-O-d6-7.d4-exd4"]
[UTCDate "2011.01.14"]
[UTCTime "23:26:16"]
[WhiteElo "1350"]
[BlackElo "1171"]
[TimeControl "540"]
[Termination "hipposcottimus won by resignation"]
[StartTime "23:26:16"]
[EndDate "2011.01.14"]
[EndTime "23:36:02"]
[Link "https://www.chess.com/game/live/87646602"]

1. e4 {[%clk 0:09:00]} 1... e5 {[%clk 0:09:00]} 2. Nf3 {[%clk 0:08:55.5]} 2... Nc6 {[%clk 0:08:57.9]} 3. Bc4 {[%clk 0:08:51.6]} 3... Bc5 {[%clk 0:08:54.9]} 4. b4 {[%clk 0:08:44.1]} 4... Bxb4 {[%clk 0:08:42.8]} 5. c3 {[%clk 0:08:28.6]} 5... Bc5 {[%clk 0:08:39.7]} 6. O-O {[%clk 0:08:28.2]} 6... d6 {[%clk 0:08:33.8]} 7. d4 {[%clk 0:08:26.4]} 7... exd4 {[%clk 0:08:30.2]} 8. cxd4 {[%clk 0:08:24.7]} 8... d5 {[%clk 0:08:17.7]} 9. dxc5 {[%clk 0:08:19.1]} 9... dxc4 {[%clk 0:08:16.3]} 10. Qxd8+ {[%clk 0:08:17.2]} 10... Kxd8 {[%clk 0:08:13.7]} 11. Ng5 {[%clk 0:08:16.8]} 11... Be6 {[%clk 0:08:02.1]} 12. Nc3 {[%clk 0:08:13.4]} 12... h6 {[%clk 0:07:55.7]} 13. Nxe6+ {[%clk 0:08:06.3]} 13... fxe6 {[%clk 0:07:54.3]} 14. f4 {[%clk 0:07:59.8]} 14... Nf6 {[%clk 0:07:51.8]} 15. f5 {[%clk 0:07:54.1]} 15... b6 {[%clk 0:07:29.1]} 16. fxe6 {[%clk 0:07:48.8]} 16... bxc5 {[%clk 0:07:25.4]} 17. Ba3 {[%clk 0:07:44.3]} 17... Re8 {[%clk 0:07:13.3]} 18. Bxc5 {[%clk 0:07:20.5]} 18... Rxe6 {[%clk 0:07:10.4]} 19. Rf4 {[%clk 0:07:04.8]} 19... Re5 {[%clk 0:06:52.5]} 20. Nd5 {[%clk 0:06:43.4]} 20... Nxe4 {[%clk 0:06:36.1]} 21. Rf8+ {[%clk 0:06:34.3]} 21... Re8 {[%clk 0:06:31]} 22. Rxe8+ {[%clk 0:06:30.7]} 22... Kxe8 {[%clk 0:06:28.4]} 23. Nxc7+ {[%clk 0:06:29.1]} 23... Kd7 {[%clk 0:06:18.8]} 24. Nxa8 {[%clk 0:06:27.8]} 24... Nxc5 {[%clk 0:06:16.7]} 25. Rc1 {[%clk 0:06:22.9]} 25... Ne5 {[%clk 0:06:09.8]} 26. Rd1+ {[%clk 0:06:19.1]} 26... Ke6 {[%clk 0:06:03.1]} 27. Nc7+ {[%clk 0:06:14.7]} 27... Ke7 {[%clk 0:05:53.9]} 28. Nd5+ {[%clk 0:06:04.3]} 28... Ke6 {[%clk 0:05:47.7]} 29. Nc7+ {[%clk 0:05:57.3]} 29... Ke7 {[%clk 0:05:44.9]} 30. Rd5 {[%clk 0:05:50.7]} 30... Ncd7 {[%clk 0:05:21.8]} 31. Nb5 {[%clk 0:05:43.8]} 31... Ke6 {[%clk 0:05:13.4]} 32. Rd6+ {[%clk 0:05:41]} 32... Ke7 {[%clk 0:05:08]} 33. Ra6 {[%clk 0:05:36]} 33... Ke8 {[%clk 0:04:37.2]} 34. Rxa7 {[%clk 0:05:32.6]} 34... Ke7 {[%clk 0:04:35.7]} 35. a4 {[%clk 0:05:27.6]} 35... Nc6 {[%clk 0:04:30.1]} 36. Rc7 {[%clk 0:05:21.2]} 36... Nb4 {[%clk 0:04:12.4]} 37. Rxc4 {[%clk 0:05:03.5]} 37... Nd5 {[%clk 0:04:02.3]} 38. a5 {[%clk 0:04:55.5]} 38... Ne3 {[%clk 0:03:56.6]} 39. Re4+ {[%clk 0:04:51.7]} 39... Kf6 {[%clk 0:03:47.6]} 40. Rxe3 {[%clk 0:04:49.2]} 40... Nc5 {[%clk 0:03:45.2]} 1-0

[Event "Live Chess"]
[Site "Chess.com"]
[Date "2011.01.14"]
[Round "-"]
[White "hipposcottimus"]
[Black "bulldogsbite"]
[Result "1-0"]
[CurrentPosition "1r3knr/7p/3Q4/1BpP4/4P3/P7/1P4PP/R4K2 b - -"]
[Timezone "UTC"]
[ECO "C41"]
[ECOUrl "https://www.chess.com/openings/Philidor-Defense"]
[UTCDate "2011.01.14"]
[UTCTime "23:21:25"]
[WhiteElo "1346"]
[BlackElo "1185"]
[TimeControl "480"]
[Termination "hipposcottimus won - game abandoned"]
[StartTime "23:21:25"]
[EndDate "2011.01.14"]
[EndTime "23:25:30"]
[Link "https://www.chess.com/game/live/87644767"]

1. e4 {[%clk 0:08:00]} 1... e5 {[%clk 0:08:00]} 2. Nf3 {[%clk 0:07:55.3]} 2... d6 {[%clk 0:07:50.1]} 3. c3 {[%clk 0:07:54.5]} 3... Bg4 {[%clk 0:07:47.4]} 4. d4 {[%clk 0:07:49.1]} 4... f6 {[%clk 0:07:44.3]} 5. Bc4 {[%clk 0:07:42.4]} 5... exd4 {[%clk 0:07:40.2]} 6. cxd4 {[%clk 0:07:15.3]} 6... Bxf3 {[%clk 0:07:37.3]} 7. Qxf3 {[%clk 0:07:07.7]} 7... c6 {[%clk 0:07:34.8]} 8. d5 {[%clk 0:07:04.4]} 8... c5 {[%clk 0:07:31.6]} 9. Nc3 {[%clk 0:07:03]} 9... a6 {[%clk 0:07:29.3]} 10. a3 {[%clk 0:07:00.2]} 10... b5 {[%clk 0:07:26.5]} 11. Be2 {[%clk 0:06:54.9]} 11... g5 {[%clk 0:07:16.3]} 12. Nxb5 {[%clk 0:06:47.2]} 12... axb5 {[%clk 0:07:12.6]} 13. Bxb5+ {[%clk 0:06:46.2]} 13... Nd7 {[%clk 0:07:11.1]} 14. Qh5+ {[%clk 0:06:39.9]} 14... Ke7 {[%clk 0:07:05.9]} 15. f4 {[%clk 0:06:28.3]} 15... Bh6 {[%clk 0:06:59.2]} 16. fxg5 {[%clk 0:06:23.4]} 16... fxg5 {[%clk 0:06:55.5]} 17. Bxg5+ {[%clk 0:06:16.3]} 17... Bxg5 {[%clk 0:06:52.3]} 18. Qxg5+ {[%clk 0:06:15.4]} 18... Ke8 {[%clk 0:06:50.8]} 19. Qg7 {[%clk 0:06:10.1]} 19... Qf6 {[%clk 0:06:41.9]} 20. Qxd7+ {[%clk 0:05:58.3]} 20... Kf8 {[%clk 0:06:38.2]} 21. Rf1 {[%clk 0:05:46.6]} 21... Qxf1+ {[%clk 0:06:25.4]} 22. Kxf1 {[%clk 0:05:46.2]} 22... Rb8 {[%clk 0:06:23.9]} 23. Qxd6+ {[%clk 0:05:42.7]} 1-0

[Event "Live Chess"]
[Site "Chess.com"]
[Date "2011.01.14"]
[Round "-"]
[White "bulldogsbite"]
[Black "hipposcottimus"]
[Result "0-1"]
[CurrentPosition "8/P1p1k3/8/q3b3/8/1K6/7P/8 b - -"]
[Timezone "UTC"]
[ECO "C50"]
[ECOUrl "https://www.chess.com/openings/Italian-Game"]
[UTCDate "2011.01.14"]
[UTCTime "23:10:34"]
[WhiteElo "1190"]
[BlackElo "1341"]
[TimeControl "480"]
[Termination "hipposcottimus won by resignation"]
[StartTime "23:10:34"]
[EndDate "2011.01.14"]
[EndTime "23:18:06"]
[Link "https://www.chess.com/game/live/87642485"]

1. e4 {[%clk 0:08:00]} 1... e5 {[%clk 0:08:00]} 2. Bc4 {[%clk 0:07:56.5]} 2... Nc6 {[%clk 0:07:56.8]} 3. Nf3 {[%clk 0:07:49.1]} 3... Nf6 {[%clk 0:07:36.1]} 4. d3 {[%clk 0:07:45.1]} 4... d5 {[%clk 0:07:24.7]} 5. Bg5 {[%clk 0:07:41.9]} 5... dxc4 {[%clk 0:07:21.6]} 6. Bxf6 {[%clk 0:07:40.6]} 6... Qxf6 {[%clk 0:07:17.9]} 7. dxc4 {[%clk 0:07:39.3]} 7... Bg4 {[%clk 0:07:16.5]} 8. Nbd2 {[%clk 0:07:35.2]} 8... Nd4 {[%clk 0:07:14.3]} 9. c3 {[%clk 0:07:31.7]} 9... Nxf3+ {[%clk 0:07:09.4]} 10. Nxf3 {[%clk 0:07:30.2]} 10... Bxf3 {[%clk 0:07:00.3]} 11. gxf3 {[%clk 0:07:27.9]} 11... Bd6 {[%clk 0:06:55.2]} 12. Qd3 {[%clk 0:07:25.8]} 12... O-O-O {[%clk 0:06:51.9]} 13. O-O-O {[%clk 0:07:24.3]} 13... Bc5 {[%clk 0:06:26.1]} 14. Qc2 {[%clk 0:07:15.9]} 14... Qf4+ {[%clk 0:06:19]} 15. Kb1 {[%clk 0:07:13.1]} 15... Qxf3 {[%clk 0:06:15.3]} 16. b4 {[%clk 0:07:10.6]} 16... Bxf2 {[%clk 0:05:50.9]} 17. Rhf1 {[%clk 0:07:01.2]} 17... Rxd1+ {[%clk 0:05:47.1]} 18. Rxd1 {[%clk 0:06:59.9]} 18... Bh4 {[%clk 0:05:21.7]} 19. c5 {[%clk 0:06:56.2]} 19... g6 {[%clk 0:05:15.7]} 20. a4 {[%clk 0:06:54.6]} 20... f5 {[%clk 0:05:11.4]} 21. exf5 {[%clk 0:06:51.8]} 21... gxf5 {[%clk 0:05:08.9]} 22. a5 {[%clk 0:06:46.4]} 22... a6 {[%clk 0:05:03.7]} 23. c4 {[%clk 0:06:42.7]} 23... e4 {[%clk 0:04:53]} 24. b5 {[%clk 0:06:40.4]} 24... Be7 {[%clk 0:04:37.4]} 25. bxa6 {[%clk 0:06:31.5]} 25... bxa6 {[%clk 0:04:35.7]} 26. c6 {[%clk 0:06:30.2]} 26... e3 {[%clk 0:04:28]} 27. Qb2 {[%clk 0:06:27.5]} 27... Qxd1+ {[%clk 0:04:22.2]} 28. Ka2 {[%clk 0:06:23.4]} 28... Qa4+ {[%clk 0:04:12]} 29. Kb1 {[%clk 0:06:18]} 29... Qxc6 {[%clk 0:04:09.1]} 30. Qxh8+ {[%clk 0:06:15.9]} 30... Kb7 {[%clk 0:04:03.7]} 31. Qb2+ {[%clk 0:06:12.9]} 31... Kc8 {[%clk 0:03:58.6]} 32. Qh8+ {[%clk 0:06:09.9]} 32... Kd7 {[%clk 0:03:51.9]} 33. Qxh7 {[%clk 0:06:08.2]} 33... Qxc4 {[%clk 0:03:46.7]} 34. Qxf5+ {[%clk 0:06:06]} 34... Qe6 {[%clk 0:03:43.8]} 35. Qd3+ {[%clk 0:06:03]} 35... Bd6 {[%clk 0:03:39.7]} 36. Qxa6 {[%clk 0:05:58.5]} 36... e2 {[%clk 0:03:37.2]} 37. Qb5+ {[%clk 0:05:54.4]} 37... Ke7 {[%clk 0:03:33.8]} 38. a6 {[%clk 0:05:44.6]} 38... e1=Q+ {[%clk 0:03:29.9]} 39. Kb2 {[%clk 0:05:41.4]} 39... Q6e5+ {[%clk 0:03:25.3]} 40. Qxe5+ {[%clk 0:05:37]} 40... Bxe5+ {[%clk 0:03:24.9]} 41. Kb3 {[%clk 0:05:34.9]} 41... Qa5 {[%clk 0:03:16.4]} 42. a7 {[%clk 0:05:32.6]} 0-1

[Event "Live Chess"]
[Site "Chess.com"]
[Date "2011.01.14"]
[Round "-"]
[White "hipposcottimus"]
[Black "bulldogsbite"]
[Result "0-1"]
[CurrentPosition "8/5k2/8/6Bp/3K2rP/4p3/8/8 w - -"]
[Timezone "UTC"]
[ECO "C41"]
[ECOUrl "https://www.chess.com/openings/Philidor-Defense-3.d4"]
[UTCDate "2011.01.14"]
[UTCTime "22:53:11"]
[WhiteElo "1336"]
[BlackElo "1195"]
[TimeControl "480"]
[Termination "bulldogsbite won on time"]
[StartTime "22:53:11"]
[EndDate "2011.01.14"]
[EndTime "23:09:23"]
[Link "https://www.chess.com/game/live/87638101"]

1. e4 {[%clk 0:08:00]} 1... e5 {[%clk 0:08:00]} 2. Nf3 {[%clk 0:07:55.7]} 2... d6 {[%clk 0:07:57.3]} 3. d4 {[%clk 0:07:53.4]} 3... f6 {[%clk 0:07:52.4]} 4. dxe5 {[%clk 0:06:25.7]} 4... dxe5 {[%clk 0:07:39.3]} 5. Qxd8+ {[%clk 0:06:18.1]} 5... Kxd8 {[%clk 0:07:37.8]} 6. Be3 {[%clk 0:06:15.8]} 6... g5 {[%clk 0:07:29.1]} 7. Nfd2 {[%clk 0:06:13]} 7... Bb4 {[%clk 0:07:21.5]} 8. c3 {[%clk 0:06:09.7]} 8... Bd6 {[%clk 0:07:16.4]} 9. Nc4 {[%clk 0:06:07.5]} 9... Be6 {[%clk 0:07:07.2]} 10. Nbd2 {[%clk 0:06:06.1]} 10... Ne7 {[%clk 0:06:58.9]} 11. O-O-O {[%clk 0:06:03.9]} 11... a6 {[%clk 0:06:52.5]} 12. g3 {[%clk 0:06:03.3]} 12... b5 {[%clk 0:06:51.1]} 13. Nxd6 {[%clk 0:05:56.1]} 13... cxd6 {[%clk 0:06:47.8]} 14. Bb6+ {[%clk 0:05:55.8]} 14... Ke8 {[%clk 0:06:42]} 15. f4 {[%clk 0:05:55.4]} 15... gxf4 {[%clk 0:06:31.5]} 16. gxf4 {[%clk 0:05:53.4]} 16... Nc8 {[%clk 0:06:14.2]} 17. Be3 {[%clk 0:05:50.9]} 17... Bg4 {[%clk 0:06:07.2]} 18. Re1 {[%clk 0:05:47.1]} 18... Nd7 {[%clk 0:06:02.1]} 19. h4 {[%clk 0:05:42.8]} 19... h5 {[%clk 0:05:55.7]} 20. fxe5 {[%clk 0:05:35.3]} 20... fxe5 {[%clk 0:05:43.3]} 21. Be2 {[%clk 0:05:32.7]} 21... Nf6 {[%clk 0:05:35.1]} 22. c4 {[%clk 0:05:29.1]} 22... Bxe2 {[%clk 0:05:28.7]} 23. Rxe2 {[%clk 0:05:26.3]} 23... Ng4 {[%clk 0:05:25.3]} 24. Bg5 {[%clk 0:05:22.4]} 24... Ne7 {[%clk 0:04:59.6]} 25. cxb5 {[%clk 0:05:19.8]} 25... axb5 {[%clk 0:04:57.3]} 26. Nb3 {[%clk 0:05:19.5]} 26... Rxa2 {[%clk 0:04:50.1]} 27. Kb1 {[%clk 0:05:17.1]} 27... Ra7 {[%clk 0:04:40.8]} 28. Rc2 {[%clk 0:05:12.3]} 28... Ra8 {[%clk 0:04:31.4]} 29. Rd1 {[%clk 0:03:55.1]} 29... Kf7 {[%clk 0:03:55.2]} 30. Rxd6 {[%clk 0:03:51.5]} 30... Rac8 {[%clk 0:03:42.4]} 31. Rcd2 {[%clk 0:03:28.3]} 31... Ng6 {[%clk 0:02:28.5]} 32. Rd7+ {[%clk 0:02:54.3]} 32... Kg8 {[%clk 0:02:19]} 33. R2d6 {[%clk 0:02:48]} 33... Nf4 {[%clk 0:02:09.2]} 34. Rb6 {[%clk 0:02:04]} 34... Rh7 {[%clk 0:01:52.8]} 35. Rdd6 {[%clk 0:01:51.8]} 35... Ne3 {[%clk 0:01:27.9]} 36. Rxb5 {[%clk 0:01:42.9]} 36... Nc4 {[%clk 0:01:22.6]} 37. Rd8+ {[%clk 0:01:03.9]} 37... Rxd8 {[%clk 0:01:17.3]} 38. Bxd8 {[%clk 0:01:03]} 38... Rd7 {[%clk 0:01:06.9]} 39. Rb8 {[%clk 0:00:54.8]} 39... Kf7 {[%clk 0:00:59.6]} 40. Bg5 {[%clk 0:00:50.4]} 40... Nd2+ {[%clk 0:00:46.5]} 41. Kc2 {[%clk 0:00:35.9]} 41... Nxb3 {[%clk 0:00:42.6]} 42. Kxb3 {[%clk 0:00:32.7]} 42... Rd4 {[%clk 0:00:41.2]} 43. Rb5 {[%clk 0:00:15]} 43... Rxe4 {[%clk 0:00:39.4]} 44. Ka2 {[%clk 0:00:11.1]} 44... Nd3 {[%clk 0:00:36.6]} 45. b4 {[%clk 0:00:08.6]} 45... Nxb4+ {[%clk 0:00:24.9]} 46. Ka3 {[%clk 0:00:06.7]} 46... Nc2+ {[%clk 0:00:22.7]} 47. Kb3 {[%clk 0:00:05]} 47... Nd4+ {[%clk 0:00:19.4]} 48. Kc4 {[%clk 0:00:01.3]} 48... Nxb5+ {[%clk 0:00:18.3]} 49. Kxb5 {[%clk 0:00:01]} 49... Rg4 {[%clk 0:00:15.2]} 50. Kc5 {[%clk 0:00:00.7]} 50... e4 {[%clk 0:00:14.1]} 51. Kd4 {[%clk 0:00:00.4]} 51... e3+ {[%clk 0:00:13.2]} 0-1

[Event "Live Chess"]
[Site "Chess.com"]
[Date "2011.01.14"]
[Round "-"]
[White "bulldogsbite"]
[Black "hipposcottimus"]
[Result "0-1"]
[CurrentPosition "r1b1kb1r/pp3ppp/8/3P4/4p3/P1q5/2P2PPP/R2QK1NR w KQkq -"]
[Timezone "UTC"]
[ECO "C23"]
[ECOUrl "https://www.chess.com/openings/Bishops-Opening-2...Nc6-3.d3-Nf6"]
[UTCDate "2011.01.14"]
[UTCTime "22:49:38"]
[WhiteElo "1182"]
[BlackElo "1347"]
[TimeControl "480"]
[Termination "hipposcottimus won by resignation"]
[StartTime "22:49:38"]
[EndDate "2011.01.14"]
[EndTime "22:52:15"]
[Link "https://www.chess.com/game/live/87637296"]

1. e4 {[%clk 0:08:00]} 1... e5 {[%clk 0:08:00]} 2. Bc4 {[%clk 0:07:57.2]} 2... Nc6 {[%clk 0:07:55.2]} 3. d3 {[%clk 0:07:53.8]} 3... Nf6 {[%clk 0:07:49.6]} 4. Bg5 {[%clk 0:07:51.2]} 4... Na5 {[%clk 0:07:47.3]} 5. Bxf6 {[%clk 0:07:48.3]} 5... Qxf6 {[%clk 0:07:45.6]} 6. Nf3 {[%clk 0:07:42]} 6... Nxc4 {[%clk 0:07:29.4]} 7. dxc4 {[%clk 0:07:39.5]} 7... c6 {[%clk 0:07:28.8]} 8. a3 {[%clk 0:07:33.8]} 8... d5 {[%clk 0:07:27.7]} 9. cxd5 {[%clk 0:07:27.3]} 9... cxd5 {[%clk 0:07:26.5]} 10. exd5 {[%clk 0:07:21.2]} 10... e4 {[%clk 0:07:24.5]} 11. Ng1 {[%clk 0:06:34.2]} 11... Qxb2 {[%clk 0:07:02.4]} 12. Nc3 {[%clk 0:06:29.5]} 12... Qxc3+ {[%clk 0:07:00.3]} 0-1

[Event "Live Chess"]
[Site "Chess.com"]
[Date "2011.01.14"]
[Round "-"]
[White "rogerbonnie10"]
[Black "hipposcottimus"]
[Result "1-0"]
[CurrentPosition "4Q1kr/7p/1p2N1p1/p3bp2/8/7R/q1P3P1/3R3K b - -"]
[Timezone "UTC"]
[ECO "D02"]
[ECOUrl "https://www.chess.com/openings/Queens-Pawn-Opening-Krause-Variation"]
[UTCDate "2011.01.14"]
[UTCTime "21:59:18"]
[WhiteElo "1373"]
[BlackElo "1342"]
[TimeControl "600"]
[Termination "rogerbonnie10 won by checkmate"]
[StartTime "21:59:18"]
[EndDate "2011.01.14"]
[EndTime "22:17:54"]
[Link "https://www.chess.com/game/live/87623143"]

1. d4 {[%clk 0:10:00]} 1... d5 {[%clk 0:10:00]} 2. Nf3 {[%clk 0:09:57]} 2... c5 {[%clk 0:09:56.7]} 3. Bf4 {[%clk 0:09:55.5]} 3... cxd4 {[%clk 0:09:47.3]} 4. Nxd4 {[%clk 0:09:52.7]} 4... f6 {[%clk 0:09:44.7]} 5. e3 {[%clk 0:09:51.3]} 5... e5 {[%clk 0:09:37.3]} 6. Bb5+ {[%clk 0:09:39.6]} 6... Bd7 {[%clk 0:09:31.8]} 7. Ne6 {[%clk 0:09:27.8]} 7... Qe7 {[%clk 0:09:16.7]} 8. Nc7+ {[%clk 0:09:13.5]} 8... Kf7 {[%clk 0:09:13]} 9. Qxd5+ {[%clk 0:08:53]} 9... Kg6 {[%clk 0:09:02.2]} 10. Bd3+ {[%clk 0:08:36.2]} 10... Bf5 {[%clk 0:08:45.2]} 11. Bxf5+ {[%clk 0:08:32.2]} 11... Kxf5 {[%clk 0:08:42.4]} 12. Nxa8 {[%clk 0:07:54]} 12... Qb4+ {[%clk 0:08:34.1]} 13. Nd2 {[%clk 0:07:34.2]} 13... Qxb2 {[%clk 0:08:24]} 14. O-O {[%clk 0:07:29.1]} 14... Ne7 {[%clk 0:08:18.6]} 15. e4+ {[%clk 0:07:25.6]} 15... Kg6 {[%clk 0:08:12]} 16. Qb3 {[%clk 0:07:04.6]} 16... Qd4 {[%clk 0:07:58.3]} 17. Be3 {[%clk 0:06:55.7]} 17... Qd7 {[%clk 0:07:43.3]} 18. f4 {[%clk 0:06:10.6]} 18... exf4 {[%clk 0:07:34.2]} 19. Bxf4 {[%clk 0:06:03.8]} 19... Nbc6 {[%clk 0:07:31.5]} 20. Qg3+ {[%clk 0:05:56.3]} 20... Kf7 {[%clk 0:07:26.3]} 21. Nf3 {[%clk 0:05:36.7]} 21... Ng6 {[%clk 0:07:20.5]} 22. Nc7 {[%clk 0:05:18.7]} 22... Bc5+ {[%clk 0:07:18.6]} 23. Kh1 {[%clk 0:05:07.6]} 23... Nxf4 {[%clk 0:07:16.4]} 24. Qxf4 {[%clk 0:05:01.6]} 24... Bd6 {[%clk 0:07:15.9]} 25. e5 {[%clk 0:04:46.8]} 25... Bxc7 {[%clk 0:07:12.2]} 26. Ng5+ {[%clk 0:04:40.2]} 26... Kg6 {[%clk 0:07:07.3]} 27. Nf3 {[%clk 0:03:27.7]} 27... Nxe5 {[%clk 0:07:02.4]} 28. Nh4+ {[%clk 0:03:17.6]} 28... Kf7 {[%clk 0:06:48.7]} 29. Rad1 {[%clk 0:02:58]} 29... Qe6 {[%clk 0:06:09.4]} 30. Qb4 {[%clk 0:02:37]} 30... b6 {[%clk 0:05:54.7]} 31. Nf5 {[%clk 0:02:30.5]} 31... a5 {[%clk 0:05:41.1]} 32. Qb5 {[%clk 0:02:21]} 32... Kg6 {[%clk 0:05:16.4]} 33. Nd4 {[%clk 0:02:07.8]} 33... Qxa2 {[%clk 0:05:03.6]} 34. h4 {[%clk 0:01:33.5]} 34... Ng4 {[%clk 0:04:28.9]} 35. Qf5+ {[%clk 0:01:26.6]} 35... Kf7 {[%clk 0:03:40.5]} 36. Qxg4 {[%clk 0:01:21.8]} 36... Be5 {[%clk 0:02:33.8]} 37. Qd7+ {[%clk 0:01:13.1]} 37... Kg6 {[%clk 0:01:43.6]} 38. h5+ {[%clk 0:01:02.6]} 38... Kxh5 {[%clk 0:01:39.9]} 39. Qf5+ {[%clk 0:00:55.4]} 39... Kh6 {[%clk 0:01:37.5]} 40. Rf3 {[%clk 0:00:50.1]} 40... g6 {[%clk 0:01:32.6]} 41. Rh3+ {[%clk 0:00:47.4]} 41... Kg7 {[%clk 0:01:32]} 42. Qd7+ {[%clk 0:00:39.7]} 42... Kg8 {[%clk 0:01:30.9]} 43. Ne6 {[%clk 0:00:35.2]} 43... f5 {[%clk 0:01:19.8]} 44. Qe8# {[%clk 0:00:26.7]} 1-0

[Event "Live Chess"]
[Site "Chess.com"]
[Date "2011.01.14"]
[Round "-"]
[White "hipposcottimus"]
[Black "Berlig"]
[Result "0-1"]
[CurrentPosition "r3k2r/1p1nnpp1/p1p1p2p/q2pP3/2PP1Pb1/5N2/P3B1PP/R2Q1RK1 w kq -"]
[Timezone "UTC"]
[ECO "B07"]
[ECOUrl "https://www.chess.com/openings/Pirc-Defense-2.d4-c6-3.c4"]
[UTCDate "2011.01.14"]
[UTCTime "21:47:42"]
[WhiteElo "1350"]
[BlackElo "1424"]
[TimeControl "480"]
[Termination "Berlig won on time"]
[StartTime "21:47:42"]
[EndDate "2011.01.14"]
[EndTime "21:49:34"]
[Link "https://www.chess.com/game/live/87617893"]

1. e4 {[%clk 0:08:00]} 1... d6 {[%clk 0:08:00]} 2. d4 {[%clk 0:07:58]} 2... c6 {[%clk 0:07:58.7]} 3. c4 {[%clk 0:07:55.9]} 3... a6 {[%clk 0:07:57.1]} 4. b4 {[%clk 0:07:54.2]} 4... h6 {[%clk 0:07:51.2]} 5. f4 {[%clk 0:07:53]} 5... Bd7 {[%clk 0:07:33.9]} 6. Nf3 {[%clk 0:07:50]} 6... Bg4 {[%clk 0:07:31.7]} 7. Be2 {[%clk 0:07:46.5]} 7... e6 {[%clk 0:07:29.3]} 8. e5 {[%clk 0:07:43.6]} 8... d5 {[%clk 0:07:25.5]} 9. O-O {[%clk 0:07:38.3]} 9... Bxb4 {[%clk 0:07:19.4]} 10. Bd2 {[%clk 0:07:34.1]} 10... Bxd2 {[%clk 0:07:08.6]} 11. Nbxd2 {[%clk 0:07:33.8]} 11... Ne7 {[%clk 0:07:05.8]} 12. Nb3 {[%clk 0:07:32.7]} 12... Nd7 {[%clk 0:06:58.9]} 13. Na5 {[%clk 0:07:23.3]} 13... Qxa5 {[%clk 0:06:51.2]} 0-1

[Event "Live Chess"]
[Site "Chess.com"]
[Date "2011.01.14"]
[Round "-"]
[White "Dizer33"]
[Black "hipposcottimus"]
[Result "0-1"]
[CurrentPosition "2rqr1k1/p4ppp/1p6/3b4/1P1nP3/P2P1P2/2P2KPP/R1B2R2 w - -"]
[Timezone "UTC"]
[ECO "C20"]
[ECOUrl "https://www.chess.com/openings/Kings-Pawn-Opening-Wayward-Queen-Kiddie-Countergambit"]
[UTCDate "2011.01.14"]
[UTCTime "21:29:47"]
[WhiteElo "1393"]
[BlackElo "1357"]
[TimeControl "300+5"]
[Termination "hipposcottimus won by resignation"]
[StartTime "21:29:47"]
[EndDate "2011.01.14"]
[EndTime "21:36:45"]
[Link "https://www.chess.com/game/live/87614012"]

1. e4 {[%clk 0:05:00]} 1... e5 {[%clk 0:05:00]} 2. Qh5 {[%clk 0:05:02.8]} 2... Nf6 {[%clk 0:04:59.9]} 3. Qxe5+ {[%clk 0:05:04.3]} 3... Be7 {[%clk 0:05:04.5]} 4. Nc3 {[%clk 0:05:02.7]} 4... O-O {[%clk 0:05:05.3]} 5. Bc4 {[%clk 0:05:03.3]} 5... d5 {[%clk 0:05:09]} 6. Bxd5 {[%clk 0:04:55.8]} 6... Bd6 {[%clk 0:05:08.6]} 7. Qd4 {[%clk 0:04:49]} 7... c5 {[%clk 0:05:09.7]} 8. Qd3 {[%clk 0:04:45.5]} 8... Re8 {[%clk 0:04:51.9]} 9. Nf3 {[%clk 0:04:44.4]} 9... Nc6 {[%clk 0:04:40.2]} 10. a3 {[%clk 0:04:42.8]} 10... Ne5 {[%clk 0:04:34.3]} 11. Nxe5 {[%clk 0:04:43.3]} 11... Bxe5 {[%clk 0:04:33.5]} 12. f3 {[%clk 0:04:30.6]} 12... Bd4 {[%clk 0:04:33.1]} 13. b4 {[%clk 0:04:26.2]} 13... Bxc3 {[%clk 0:04:36.4]} 14. Qxc3 {[%clk 0:04:29]} 14... Nxd5 {[%clk 0:04:37.4]} 15. Qxc5 {[%clk 0:04:20.9]} 15... b6 {[%clk 0:04:39]} 16. Qc6 {[%clk 0:04:11.5]} 16... Rb8 {[%clk 0:03:57.6]} 17. O-O {[%clk 0:04:12.6]} 17... Bb7 {[%clk 0:04:01.2]} 18. Qc4 {[%clk 0:04:10]} 18... Nf4 {[%clk 0:03:50.4]} 19. d3 {[%clk 0:04:03.3]} 19... Rc8 {[%clk 0:03:41.6]} 20. Qb3 {[%clk 0:03:48.4]} 20... Ne2+ {[%clk 0:03:17.3]} 21. Kf2 {[%clk 0:03:50.4]} 21... Nd4 {[%clk 0:03:20.4]} 22. Qd5 {[%clk 0:03:36.6]} 22... Bxd5 {[%clk 0:03:16.6]} 0-1